bitfinex-derivatives/quotes_SOLF0:USTF0_20250606
["timestamp","ask_amount","ask_price","bid_price","bid_amount"]
[1749233037528,6.6559,150.13,150.12,6.20609569]
[1749233037727,6.6559,150.13,150.1,6.20609569]
[1749233037728,11.14358898,150.13,150.1,6.20609569]
[1749233037930,7.27437481,150.14,150.1,6.20609569]
[1749233038130,7.27437481,150.14,150.1,12.86299569]
[1749233038131,4.50831134,150.13,150.1,12.86299569]
[1749233038332,41.21437481,150.14,150.11,6.20609569]
[1749233038522,41.25715996,150.14,150.11,0.04917851]
[1749233038725,8.27410031,150.22,150.12,7.27437481]
[1749233038923,8.27410031,150.22,150.11,6.2552742]
[1749233038924,7.27437481,150.2,150.14,7.27437481]
[1749233039126,6.6539,150.18,150.15,8.9778]
[1749233039325,4.50824825,150.17,150.15,8.9778]
[1749233039627,4.50824825,150.16,150.15,8.9778]
[1749233039834,4.50622211,150.17,150.15,18.9778]
[1749233040129,6.6539,150.18,150.15,18.9778]
[1749233040427,4.50743848,150.17,150.15,12.3231]
[1749233040633,4.50743848,150.16,150.15,12.3231]
[1749233040833,6.6539,150.18,150.15,12.3231]
[1749233041130,6.6535,150.19,150.15,18.9778]
[1749233041332,41.21437481,150.21,150.15,18.9778]
[1749233041531,41.21437481,150.21,150.15,12.3231]
[1749233041733,7.27437481,150.17,150.15,10.0]
[1749233042032,33.94,150.16,150.15,10.0]
[1749233042230,40.5946,150.16,150.15,10.0]
[1749233042429,33.94,150.16,150.14,0.04212073]
[1749233042631,7.27437481,150.14,150.06,43.42327481]
[1749233042827,7.27437481,150.14,150.06,9.48327481]
[1749233043032,164.02,150.16,150.06,9.48327481]
[1749233043033,7.27437481,150.12,150.06,2.2089]
[1749233043231,6.658,150.09,150.06,2.2089]
[1749233043431,33.94,150.11,150.06,2.2089]
[1749233043631,0.04697559,150.09,150.06,2.25518543]
[1749233043937,0.04697559,150.09,150.06,8.91408543]
[1749233043938,6.70467559,150.09,150.06,8.91408543]
[1749233044339,6.70467559,150.09,150.06,18.91408543]
[1749233044639,6.70467559,150.09,150.06,25.1369087]
[1749233044838,6.70467559,150.09,150.06,18.91408543]
[1749233045038,6.70467559,150.09,150.06,12.25518543]
[1749233045233,0.04697559,150.09,150.06,12.25518543]
[1749233045539,0.04697559,150.09,150.06,18.91408543]
[1749233046338,6.70487559,150.09,150.06,12.25518543]
[1749233046735,6.6583,150.08,150.06,12.25518543]
[1749233047040,6.6583,150.08,150.06,10.04628543]
[1749233048437,6.70487559,150.09,150.06,10.04628543]
[1749233048842,0.04697559,150.09,150.06,10.04628543]
[1749233049142,0.04697559,150.09,150.06,16.70498543]
[1749233049336,0.04697559,150.09,150.06,23.53762857]
[1749233050134,0.04697559,150.09,150.07,6.6582]
[1749233050342,0.04697559,150.09,150.06,23.53762857]
[1749233050739,0.04697559,150.09,150.07,6.6583]
[1749233052044,6.70477559,150.09,150.07,6.6583]
[1749233052245,0.04697559,150.09,150.07,6.6583]
[1749233052443,0.04697559,150.09,150.06,23.53762857]
[1749233053245,0.04697559,150.09,150.08,6.6581]
[1749233055649,0.04697559,150.09,150.07,8.9236]
[1749233055843,0.04697559,150.09,150.07,2.2653]
[1749233056045,0.04697559,150.09,150.08,10.0]
[1749233056241,0.04697559,150.09,150.08,16.6581]
[1749233056442,0.04697559,150.09,150.08,10.0]
[1749233057045,0.04697559,150.09,150.08,16.6581]
[1749233058047,132.39111821,150.16,150.08,17.27437481]
[1749233058243,33.96,150.15,150.11,7.27437481]
[1749233058642,33.96,150.15,150.14,6.6554]
[1749233059137,33.96,150.15,150.13,6.70585139]
[1749233059542,33.96,150.15,150.13,0.05005139]
[1749233060244,40.6153,150.15,150.13,0.05005139]
[1749233060845,6.6554,150.14,150.13,0.05005139]
[1749233061350,33.96,150.15,150.13,0.05005139]
[1749233061648,40.6152,150.15,150.13,0.05005139]
[1749233062051,7.27437481,150.14,150.13,0.05005139]
[1749233062241,13.92977481,150.14,150.13,0.05005139]
[1749233062443,33.96,150.15,150.13,0.05005139]
[1749233063049,40.6152,150.15,150.13,0.05005139]
[1749233063648,13.92977481,150.14,150.13,0.05005139]
[1749233065145,7.27437481,150.14,150.08,10.0]
[1749233065345,7.27437481,150.11,150.08,10.0]
[1749233065553,6.6575,150.1,150.08,10.0]
[1749233065747,41.23437481,150.11,150.08,10.0]
[1749233065947,7.27437481,150.09,150.08,10.0]
[1749233066147,13.93207481,150.09,150.08,10.0]
[1749233066647,6.6577,150.09,150.08,10.0]
[1749233066843,0.04701343,150.1,150.08,10.0]
[1749233066844,6.70441343,150.1,150.08,10.0]
[1749233067042,0.04701343,150.1,150.08,10.0]
[1749233067350,6.6577,150.09,150.08,10.0]
[1749233067552,0.04701343,150.1,150.08,10.0]
[1749233069353,6.6576,150.09,150.07,0.04601469]
[1749233069755,6.6576,150.09,150.08,10.0]
[1749233071557,13.93197481,150.09,150.08,10.0]
[1749233073557,6.6576,150.09,150.08,10.0]
[1749233073756,13.93197481,150.09,150.08,10.0]
[1749233075052,6.6581,150.08,150.07,0.04601469]
[1749233075253,7.27437481,150.08,150.01,2.3131]
[1749233075454,7.27437481,150.04,150.01,2.3131]
[1749233075955,13.93447481,150.04,150.01,2.3131]
[1749233076359,13.97745704,150.04,150.01,2.35593498]
[1749233076864,13.97745704,150.04,150.01,12.35593498]
[1749233077661,0.04298223,150.04,150.01,12.35593498]
[1749233078063,0.04298223,150.04,150.02,6.6605]
[1749233078860,0.04298223,150.04,150.01,12.35593498]
[1749233079463,0.04298223,150.04,150.01,19.01673498]
[1749233079664,0.04298223,150.04,150.01,12.35593498]
[1749233080068,7.27437481,150.06,150.01,12.35593498]
[1749233080269,33.96,150.07,150.01,19.63030979]
[1749233080670,6.6593,150.06,150.03,6.6601]
[1749233081058,6.70382908,150.06,150.03,6.6601]
[1749233083271,6.70382908,150.06,150.04,6.6598]
[1749233084470,6.70382908,150.06,150.01,25.84188645]
[1749233085271,0.04452908,150.06,150.01,25.84188645]
[1749233085775,0.04452908,150.06,150.04,6.6595]
[1749233086971,6.70352908,150.06,150.04,6.6595]
[1749233087470,0.04452908,150.06,150.01,19.63030979]
[1749233087676,6.6597,150.05,150.01,19.63030979]
[1749233088775,6.6597,150.05,150.03,6.6602]
[1749233089880,6.6597,150.05,150.03,16.6602]
[1749233091983,0.04452908,150.06,150.03,10.0]
[1749233092184,7.31890389,150.06,150.03,10.0]
[1749233092482,6.6599,150.04,150.03,10.0]
[1749233092682,7.31890389,150.06,150.03,10.0]
[1749233093588,13.97810389,150.06,150.03,10.0]
[1749233094680,6.6596,150.05,150.03,10.0]
[1749233100490,6.70382908,150.06,150.03,10.0]
[1749233100688,0.04452908,150.06,150.03,10.0]
[1749233101690,7.27437481,150.05,150.03,10.0]
[1749233102087,6.6599,150.04,150.03,10.0]
[1749233105389,7.27437481,150.05,150.01,0.04283498]
[1749233105390,6.6608,150.02,150.01,0.04283498]
[1749233105596,47.91517481,150.02,150.01,0.04283498]
[1749233106304,40.6408,150.02,150.01,0.04283498]
[1749233106599,33.98,150.02,150.01,0.04283498]
[1749233107193,40.6408,150.02,150.01,0.04283498]
[1749233107397,40.6408,150.02,150.01,10.04283498]
[1749233111506,33.98,150.02,150.01,10.04283498]
[1749233111703,33.98,150.02,150.01,16.70403498]
[1749233111902,33.98,150.05,150.01,10.04283498]
[1749233112205,33.98,150.05,150.02,7.27437481]
[1749233112405,33.98,150.05,150.03,6.6601]
[1749233112608,33.98,150.05,150.02,9.51867481]
[1749233112806,33.98,150.05,150.02,2.2443]
[1749233113295,6.6602,150.04,150.02,2.2443]
[1749233113500,33.98,150.05,150.01,10.04283498]
[1749233113698,6.6608,150.02,150.01,10.04283498]
[1749233116112,13.93487481,150.03,150.01,10.04283498]
[1749233116503,7.27437481,150.03,150.01,10.04283498]
[1749233117206,6.6608,150.02,150.01,10.04283498]
[1749233120399,41.25437481,150.05,150.01,10.04283498]
[1749233121001,6.6601,150.04,150.01,10.04283498]
[1749233121207,41.25437481,150.05,150.01,10.04283498]
[1749233121914,6.66,150.04,150.01,10.04283498]
[1749233122118,6.66,150.04,150.01,16.70393498]
[1749233122308,41.25437481,150.05,150.01,16.70393498]
[1749233122612,41.25437481,150.05,150.01,10.04283498]
[1749233122916,6.6601,150.04,150.01,10.04283498]
[1749233123314,33.98,150.05,150.01,10.04283498]
[1749233123613,33.98,150.05,150.02,7.27437481]
[1749233124014,40.6397,150.05,150.02,13.93487481]
[1749233124518,33.98,150.05,150.02,13.93487481]
[1749233125016,6.6601,150.04,150.02,13.93487481]
[1749233125418,6.6601,150.04,150.02,7.27437481]
[1749233125819,6.6603,150.03,150.02,7.27437481]
[1749233126412,33.98,150.05,150.01,10.04283498]
[1749233127015,6.6605,150.03,150.01,10.04283498]
[1749233128118,33.98,150.05,150.01,10.04283498]
[1749233129221,6.6605,150.03,150.01,16.70403498]
[1749233129722,33.98,150.05,150.01,16.70403498]
[1749233130110,6.66,150.04,150.01,16.70403498]
[1749233130520,6.66,150.04,150.02,6.6607]
[1749233131123,33.98,150.05,150.01,10.04283498]
[1749233131718,6.6601,150.04,150.02,6.6607]
[1749233131919,33.98,150.05,150.01,16.25184509]
[1749233132423,33.98,150.05,150.01,10.04283498]
[1749233132627,6.66,150.04,150.01,22.91284509]
[1749233133623,6.66,150.04,150.02,6.6607]
[1749233133823,6.66,150.04,150.01,16.25184509]
[1749233134018,6.66,150.04,150.01,10.04283498]
[1749233134423,6.66,150.04,150.01,16.25184509]
[1749233136222,6.66,150.04,150.01,22.91264509]
[1749233136823,33.98,150.05,150.01,16.70363498]
[1749233137327,6.6604,150.03,150.01,16.70363498]
[1749233138023,6.6604,150.03,150.01,10.04283498]
[1749233138425,6.6604,150.03,150.01,16.70403498]
[1749233138617,6.6601,150.04,150.01,16.70403498]
[1749233139925,6.6601,150.04,150.01,22.91304509]
[1749233140727,6.6601,150.04,150.01,16.70403498]
[1749233141225,6.6601,150.04,150.01,22.91304509]
[1749233141427,6.6601,150.04,150.01,16.70403498]
[1749233141724,6.6601,150.04,150.01,22.91304509]
[1749233142322,6.6601,150.04,150.01,16.70403498]
[1749233143227,6.6601,150.04,150.01,22.91304509]
[1749233144024,6.6601,150.04,150.01,16.25184509]
[1749233147229,6.6604,150.03,150.01,16.25184509]
[1749233148532,6.6604,150.03,150.01,10.04283498]
[1749233148717,33.98,150.05,150.01,10.04283498]
[1749233148718,6.6608,150.02,150.01,10.04283498]
[1749233148922,41.25437481,150.05,150.01,10.04283498]
[1749233149327,6.6605,150.03,150.01,10.04283498]
[1749233150727,41.25437481,150.05,150.01,10.04283498]
[1749233151229,6.6606,150.03,150.01,10.04283498]
[1749233151425,41.25437481,150.05,150.01,10.04283498]
[1749233151825,7.27437481,150.03,150.01,10.04283498]
[1749233152832,6.6608,150.02,150.01,10.04283498]
[1749233155228,33.98,150.05,150.01,10.04283498]
[1749233155229,6.6602,150.04,150.01,10.04283498]
[1749233156036,6.6602,150.04,150.01,16.70373498]
[1749233156630,6.6603,150.03,150.01,10.04283498]
[1749233159627,6.6608,150.02,150.01,10.04283498]
[1749233160133,13.93517481,150.02,150.01,10.04283498]
[1749233162236,33.98,150.05,150.01,10.04283498]
[1749233162441,33.98,150.05,150.01,16.70373498]
[1749233162735,33.98,150.05,150.02,7.27437481]
[1749233162943,0.04452908,150.06,150.04,7.27437481]
[1749233164032,0.04452908,150.06,150.04,13.93387481]
[1749233164637,6.70362908,150.06,150.04,7.27437481]
[1749233164942,0.04452908,150.06,150.03,6.22912513]
[1749233165140,0.04452908,150.06,150.02,8.52522513]
[1749233165337,0.04452908,150.06,150.02,6.22912513]
[1749233165543,6.6597,150.05,150.02,6.22912513]
[1749233165742,33.96,150.04,150.02,6.22912513]
[1749233166544,33.96,150.04,150.02,12.88982513]
[1749233166743,33.96,150.04,150.02,6.22912513]
[1749233167242,33.96,150.04,150.01,10.04283498]
[1749233167536,33.96,150.04,150.02,6.6607]
[1749233167743,33.96,150.04,150.02,12.88982513]
[1749233167939,33.96,150.04,150.02,6.22912513]
[1749233168138,33.96,150.04,150.03,6.6603]
[1749233168343,0.04452908,150.06,150.03,7.27437481]
[1749233168544,6.70352908,150.06,150.03,13.50349994]
[1749233168743,6.70352908,150.06,150.03,13.93447481]
[1749233169037,6.6598,150.05,150.02,6.22912513]
[1749233169241,6.6598,150.05,150.02,12.88952513]
[1749233169545,0.04452908,150.06,150.03,6.22912513]
[1749233170243,0.04452908,150.06,150.05,7.27437481]
[1749233170441,417.7,150.1,150.05,7.27437481]
[1749233170644,424.3574,150.1,150.07,6.6581]
[1749233171149,417.7,150.1,150.06,6.6588]
[1749233171444,7.27437481,150.07,150.06,0.04765942]
[1749233171649,13.93287481,150.07,150.06,0.04765942]
[1749233173847,7.27437481,150.09,150.06,0.04765942]
[1749233174042,417.7,150.1,150.06,0.04765942]
[1749233174852,6.6579,150.09,150.06,6.70635942]
[1749233175049,417.7,150.1,150.06,0.04765942]
[1749233175453,7.27437481,150.09,150.06,0.04765942]
[1749233175650,6.6585,150.07,150.06,10.04765942]
[1749233176753,6.6583,150.08,150.06,10.04765942]
[1749233176952,7.27437481,150.09,150.06,10.04765942]
[1749233177151,6.6584,150.08,150.06,10.04765942]
[1749233177856,13.93287481,150.07,150.06,10.04765942]
[1749233179855,13.93287481,150.07,150.06,5.05248169]
[1749233181158,6.6585,150.07,150.06,5.05248169]
[1749233181459,47.85287481,150.07,150.06,5.05248169]
[1749233181663,6.659,150.06,150.05,0.04559704]
[1749233183661,6.659,150.06,150.05,10.04559704]
[1749233184962,41.19437481,150.07,149.98,6.22912513]
[1749233185159,7.27437481,150.02,149.98,6.22912513]
[1749233185355,33.92,150.01,149.98,6.22912513]
[1749233185559,33.92,150.03,149.99,6.22912513]
[1749233185863,0.04630434,150.03,149.99,6.27742725]
[1749233186455,6.70660434,150.03,149.99,6.27742725]
[1749233186651,0.04630434,150.03,149.99,6.27742725]
[1749233186852,7.32067915,150.03,149.99,0.04830212]
[1749233187055,6.6616,150.0,149.99,10.04830212]
[1749233187265,7.27437481,150.01,149.99,10.04830212]
[1749233187562,33.92,150.0,149.99,10.04830212]
[1749233188259,40.5816,150.0,149.99,10.04830212]
[1749233188666,33.92,150.0,149.99,10.04830212]
[1749233188864,40.5816,150.0,149.99,10.04830212]
[1749233192072,6.6636,149.96,149.93,8.37192513]
[1749233192367,6.6636,149.96,149.92,2.1477]
[1749233192669,7.27437481,149.97,149.92,2.1477]
[1749233193061,6.6642,149.95,149.93,0.04942532]
[1749233193259,33.98924623,149.96,149.93,0.04942532]
[1749233193472,6.6641,149.95,149.93,0.04942532]
[1749233193871,6.6641,149.95,149.93,10.04942532]
[1749233194175,33.98924623,149.96,149.93,10.04942532]
[1749233194176,13.93867481,149.94,149.93,10.04942532]
[1749233194770,6.664,149.95,149.93,10.04942532]
[1749233194969,33.98924623,149.96,149.93,10.04942532]
[1749233195666,33.98924623,149.96,149.94,6.6643]
[1749233195972,33.98924623,149.96,149.93,10.04942532]
[1749233196169,33.98924623,149.96,149.94,6.664]
[1749233197576,40.65264623,149.96,149.94,6.664]
[1749233197963,33.98924623,149.96,149.94,6.664]
[1749233199177,33.98924623,149.96,149.93,10.04942532]
[1749233199675,33.98924623,149.96,149.95,6.6638]
[1749233200077,33.98924623,149.96,149.93,10.04942532]
[1749233200477,33.98924623,149.96,149.94,6.664]
[1749233201178,33.98924623,149.96,149.95,6.6638]
[1749233205081,33.98924623,149.96,149.94,6.6641]
[1749233205282,40.65294623,149.96,149.93,10.04942532]
[1749233205584,33.98924623,149.96,149.93,10.04942532]
[1749233206787,33.98924623,149.96,149.93,16.71392532]
[1749233208280,40.65274623,149.96,149.94,6.6641]
[1749233208480,33.98924623,149.96,149.94,6.6641]
[1749233209084,40.65284623,149.96,149.93,16.71392532]
[1749233209581,33.98924623,149.96,149.93,16.71392532]
[1749233209783,33.98924623,149.96,149.94,6.6641]
[1749233211292,40.65284623,149.96,149.94,6.6641]
[1749233211696,33.98924623,149.96,149.93,10.04942532]
[1749233211991,33.92,149.99,149.95,7.27437481]
[1749233212196,33.92,150.0,149.97,7.27437481]
[1749233212394,33.92,150.01,149.99,6.6621]
[1749233212593,33.92,150.01,149.97,7.27437481]
[1749233212895,6.6618,150.0,149.97,13.93697481]
[1749233213096,6.71021312,150.0,149.97,13.98649873]
[1749233213296,6.71021312,150.0,149.97,7.32389873]
[1749233213688,6.71021312,150.0,149.97,13.98659873]
[1749233213993,6.6622,149.99,149.97,0.04952392]
[1749233214893,6.6625,149.98,149.97,0.04952392]
[1749233216499,0.04841312,150.0,149.97,0.04952392]
[1749233217085,6.71031312,150.0,149.97,0.04952392]
[1749233217285,6.71031312,150.0,149.98,6.6625]
[1749233217498,0.04841312,150.0,149.98,6.6625]
[1749233217894,0.04841312,150.0,149.97,6.71222392]
[1749233218384,6.71021312,150.0,149.97,6.71222392]
[1749233219195,6.71021312,150.0,149.98,6.6625]
[1749233220794,6.71021312,150.0,149.97,6.71222392]
[1749233221192,0.04841312,150.0,149.97,0.04952392]
[1749233221498,0.04841312,150.0,149.99,6.662]
[1749233221694,6.6605,150.03,149.99,7.27437481]
[1749233221891,33.92,150.04,149.99,7.27437481]
[1749233222091,33.92,150.04,150.0,6.6613]
[1749233222293,33.92,150.04,149.99,17.27437481]
[1749233222586,6.6603,150.03,149.99,17.27437481]
[1749233222787,6.70992521,150.03,149.99,17.31648382]
[1749233223194,6.6608,150.02,149.99,17.31648382]
[1749233223690,6.6612,150.01,149.99,23.97828382]
[1749233224000,0.04962521,150.03,149.99,23.97828382]
[1749233224001,0.04962521,150.03,149.99,17.31648382]
[1749233224199,0.04962521,150.03,149.99,10.04210901]
[1749233224897,6.6614,150.01,149.99,10.04210901]
[1749233226493,0.04962521,150.03,149.99,17.31648382]
[1749233226795,33.92,150.07,150.01,14.54874962]
[1749233226999,383.82,150.12,150.06,6.6586]
[1749233227000,40.5779,150.09,150.06,6.6586]
[1749233227195,33.92,150.09,150.05,7.27437481]
[1749233227797,33.92,150.09,150.05,7.31932404]
[1749233228205,33.92,150.09,150.07,6.6584]
[1749233228802,40.5777,150.09,150.06,6.6587]
[1749233229000,33.92,150.09,150.05,7.31932404]
[1749233229306,6.6586,150.07,150.05,6.70414923]
[1749233229506,33.92,150.09,150.05,0.04494923]
[1749233230512,6.6583,150.08,150.05,6.70414923]
[1749233230906,41.19437481,150.09,150.05,0.04494923]
[1749233231097,33.92,150.09,150.05,0.04494923]
[1749233231294,41.19437481,150.09,150.05,0.04494923]
[1749233231503,33.92,150.09,150.05,0.04494923]
[1749233231704,33.92,150.09,150.05,6.70424923]
[1749233232004,33.92,150.09,150.05,0.04494923]
[1749233232304,6.6586,150.07,150.05,0.04494923]
[1749233233903,6.6589,150.06,150.05,0.04494923]
[1749233234102,13.93327481,150.06,150.05,0.04494923]
[1749233236002,10.60197481,150.06,150.05,0.04494923]
[1749233236710,6.6612,150.01,149.99,10.0]
[1749233237005,7.27437481,150.01,149.96,6.6631]
[1749233237203,7.27437481,150.01,149.99,10.0]
[1749233237597,6.662,150.0,149.99,10.0]
[1749233237801,6.662,150.0,149.99,10.04301947]
[1749233238407,6.662,150.0,149.99,0.04301947]
[1749233238611,6.6628,149.98,149.91,47.38349994]
[1749233238799,47.83717481,149.98,149.94,6.6641]
[1749233239309,41.17437481,149.98,149.95,6.6638]
[1749233239511,41.22107997,149.98,149.95,6.70815113]
[1749233240312,47.88357997,149.98,149.95,0.04435113]
[1749233241106,47.88357997,149.98,149.95,10.04435113]
[1749233241609,41.22107997,149.98,149.95,10.04435113]
[1749233242111,6.6632,149.97,149.95,10.04435113]
[1749233243013,33.94670516,149.98,149.95,10.04435113]
[1749233243412,33.94670516,149.98,149.96,6.6631]
[1749233244006,33.94670516,149.98,149.97,6.6629]
[1749233244717,33.94670516,149.98,149.96,6.6632]
[1749233247014,40.60920516,149.98,149.96,6.6632]
[1749233247412,33.94670516,149.98,149.95,10.04435113]
[1749233248017,33.94670516,149.98,149.96,6.663]
[1749233248417,33.94670516,149.98,149.95,10.04435113]
[1749233248617,33.94670516,149.98,149.96,6.663]
[1749233249618,33.94670516,149.98,149.97,6.6629]
[1749233250418,33.94670516,149.98,149.96,6.6632]
[1749233251418,33.94670516,149.98,149.97,6.6629]
[1749233252024,33.94670516,149.98,149.96,6.6632]
[1749233252218,33.94670516,149.98,149.97,10.0]
[1749233255025,40.60920516,149.98,149.97,10.0]
[1749233255422,33.94670516,149.98,149.97,10.0]
[1749233255929,33.94670516,149.98,149.97,16.6629]
[1749233256324,33.94670516,149.98,149.97,10.0]
[1749233257331,40.60920516,149.98,149.97,10.0]
[1749233257524,33.94670516,149.98,149.97,10.0]
[1749233258023,33.94670516,149.98,149.97,16.6629]
[1749233258322,33.94670516,149.98,149.97,10.0]
[1749233259420,33.94670516,149.98,149.97,16.6629]
[1749233259620,33.94670516,149.98,149.97,10.0]
[1749233260623,33.94670516,149.98,149.97,16.6629]
[1749233262627,33.94670516,149.98,149.97,10.0]
[1749233263527,40.60920516,149.98,149.97,10.0]
[1749233268322,47.88357997,149.98,149.97,10.0]
[1749233282153,33.94670516,149.98,149.97,10.0]
[1749233282755,40.60910516,149.98,149.97,10.0]
[1749233283153,47.88347997,149.98,149.97,10.0]
[1749233283448,47.88347997,149.98,149.95,0.04435113]
[1749233283449,6.6633,149.96,149.95,0.04435113]
[1749233285054,13.93767481,149.96,149.95,0.04435113]
[1749233285254,6.6642,149.94,149.93,6.22912513]
[1749233285456,40.5642,149.94,149.93,6.22912513]
[1749233285661,41.17437481,149.94,149.9,6.22912513]
[1749233285956,6.6658,149.91,149.88,6.22912513]
[1749233286154,7.27437481,149.92,149.88,6.22912513]
[1749233286359,6.7118925,149.91,149.89,0.04861941]
[1749233287057,47.84037481,149.9,149.89,0.04861941]
[1749233289364,33.9,149.9,149.89,0.04861941]
[1749233289567,0.0458925,149.91,149.89,0.04861941]
[1749233289865,0.0458925,149.91,149.9,6.666]
[1749233294368,0.0458925,149.91,149.9,16.666]
[1749233298173,33.9,149.93,149.92,6.6651]
[1749233298375,33.88,149.96,149.91,7.27437481]
[1749233298567,40.5435,149.96,149.91,7.27437481]
[1749233298767,40.5435,149.96,149.93,6.6644]
[1749233299172,40.59033788,149.96,149.93,6.71169769]
[1749233299670,6.6638,149.95,149.93,6.71169769]
[1749233299872,33.92683788,149.96,149.93,0.04729769]
[1749233300674,6.6642,149.95,149.93,6.71179769]
[1749233305580,6.6642,149.94,149.93,0.04729769]
[1749233305982,33.92683788,149.96,149.93,0.04729769]
[1749233306170,6.664,149.95,149.93,6.71199769]
[1749233306972,6.664,149.95,149.93,0.04729769]
[1749233308285,6.6642,149.94,149.93,0.04729769]
[1749233312086,41.20121269,149.96,149.93,0.04729769]
[1749233312087,33.92683788,149.96,149.93,10.04729769]
[1749233312283,0.04683788,149.96,149.93,17.3216725]
[1749233312485,0.04683788,149.96,149.95,6.6638]
[1749233312684,0.04683788,149.96,149.94,2.295]
[1749233312888,0.04683788,149.96,149.93,10.04729769]
[1749233313093,6.664,149.95,149.93,10.04729769]
[1749233313287,0.04683788,149.96,149.93,10.04729769]
[1749233313687,0.04683788,149.96,149.95,6.6638]
[1749233319687,0.04683788,149.96,149.95,13.93817481]
[1749233319888,0.04683788,149.96,149.95,16.09357481]
[1749233320785,0.04683788,149.96,149.95,18.30287481]
[1749233325696,0.04683788,149.96,149.95,28.30287481]
[1749233327994,0.04683788,149.96,149.95,21.0285]
[1749233329500,0.04683788,149.96,149.95,14.3647]
[1749233330294,0.04683788,149.96,149.95,21.0285]
[1749233334198,0.04683788,149.96,149.95,28.30287481]
[1749233343213,0.04683788,149.96,149.95,25.65645828]
[1749233344798,0.04683788,149.96,149.95,10.0]
[1749233345009,4.67479616,149.96,149.95,10.0]
[1749233345310,6.6642,149.94,149.93,0.04729769]
[1749233345608,0.04683788,149.96,149.93,4.67525597]
[1749233345806,0.04683788,149.96,149.95,4.62795828]
[1749233346006,0.04683788,149.96,149.94,4.62795828]
[1749233346208,0.04683788,149.96,149.93,11.33965597]
[1749233346408,6.71043788,149.96,149.93,11.33965597]
[1749233346607,4.67479616,149.96,149.93,0.04729769]
[1749233346798,4.62795828,149.95,149.93,0.04729769]
[1749233347000,11.29205828,149.95,149.93,0.04729769]
[1749233347211,11.29205828,149.95,149.93,16.71199769]
[1749233347712,11.29205828,149.95,149.93,10.04729769]
[1749233348808,4.62795828,149.95,149.93,16.71199769]
[1749233350015,11.33839616,149.96,149.93,16.71199769]
[1749233350316,6.6638,149.95,149.93,16.71199769]
[1749233350610,6.6638,149.95,149.93,10.04729769]
[1749233351917,11.29175828,149.95,149.93,10.04729769]
[1749233352115,6.6642,149.94,149.93,10.04729769]
[1749233353611,11.29215828,149.94,149.93,10.04729769]
[1749233357419,6.6642,149.94,149.93,10.04729769]
[1749233358119,11.29215828,149.94,149.93,10.04729769]
[1749233361023,6.6642,149.94,149.93,10.04729769]
[1749233361723,11.29215828,149.94,149.93,10.04729769]
[1749233368838,6.6642,149.94,149.93,10.04729769]
[1749233371441,11.29215828,149.94,149.93,10.04729769]
[1749233379436,6.6642,149.94,149.93,10.04729769]
[1749233379633,11.29215828,149.94,149.93,10.04729769]
[1749233380350,6.6638,149.95,149.93,10.04729769]
[1749233380541,4.67479616,149.96,149.93,14.67525597]
[1749233381246,4.67479616,149.96,149.93,10.04729769]
[1749233381442,4.62795828,149.94,149.93,10.04729769]
[1749233382041,11.29195828,149.94,149.93,10.04729769]
[1749233383054,6.664,149.94,149.93,10.04729769]
[1749233383238,11.29195828,149.94,149.93,10.04729769]
[1749233394655,45.11195828,149.94,149.93,10.04729769]
[1749233395056,40.484,149.94,149.93,10.04729769]
[1749233395257,45.11195828,149.94,149.93,10.04729769]
[1749233399858,38.44795828,149.94,149.86,8.28814757]
[1749233400163,4.63462145,149.87,149.83,17.23146902]
[1749233400365,11.30182145,149.87,149.83,23.90016902]
[1749233400559,4.63462145,149.87,149.83,17.23146902]
[1749233400760,0.04381209,149.86,149.84,0.04467392]
[1749233401266,0.04381209,149.86,149.84,6.71287392]
[1749233401964,0.04381209,149.86,149.84,16.71287392]
[1749233403469,4.67843354,149.86,149.84,16.71287392]
[1749233404466,4.67843354,149.86,149.84,10.04467392]
[1749233404666,4.63462145,149.85,149.84,10.04467392]
[1749233405269,0.04381209,149.86,149.84,10.04467392]
[1749233405663,0.04381209,149.86,149.84,16.71297392]
[1749233406872,4.67843354,149.86,149.84,10.04467392]
[1749233407666,11.34603354,149.86,149.84,10.04467392]
[1749233407868,4.63462145,149.85,149.84,10.04467392]
[1749233409474,4.67843354,149.86,149.84,10.04467392]
[1749233409772,4.67843354,149.86,149.84,16.71297392]
[1749233411175,4.67843354,149.86,149.84,10.04467392]
[1749233411573,4.67843354,149.86,149.84,16.71307392]